bitfinex/quotes_SOLUSD_20240726
["timestamp","ask_amount","ask_price","bid_price","bid_amount"]
[1721962672689,5.6772,176.15,176.04,5.6804]
[1721962673585,5.6772,176.15,176.05,20.0]
[1721962673955,5.6777,176.13,176.03,28.2424]
[1721962674491,5.6773,176.14,176.03,28.2424]
[1721962674664,45.0,176.2,176.03,22.5616]
[1721962674864,46.09580644,176.22,176.04,5.6804]
[1721962674865,5.677,176.15,176.04,5.6804]
[1721962675055,14.1892,176.19,176.04,5.6804]
[1721962675255,65.0,176.18,176.05,20.0]
[1721962675478,20.0,176.18,176.07,5.6793]
[1721962675684,20.0,176.18,176.04,21.13574982]
[1721962675685,31.90900644,176.22,176.09,5.6786]
[1721962676191,5.6756,176.2,176.09,5.6786]
[1721962676485,28.76900644,176.22,176.08,25.6792]
[1721962676668,5.6757,176.19,176.09,5.6788]
[1721962676892,5.6757,176.19,176.08,25.6791]
[1721962677187,5.676,176.18,176.08,20.0]
[1721962677886,5.6757,176.19,176.08,5.6792]
[1721962678087,5.6757,176.19,176.09,20.0]
[1721962678494,5.676,176.18,176.09,20.0]
[1721962678707,5.676,176.18,176.08,25.6791]
[1721962679006,5.6761,176.18,176.08,20.0]
[1721962679184,5.6757,176.19,176.08,25.6791]
[1721962679387,5.6754,176.2,176.09,5.6788]
[1721962679712,5.6756,176.2,176.08,5.6792]
[1721962679880,5.6756,176.2,176.09,25.6788]
[1721962680197,28.76900644,176.22,176.08,5.679]
[1721962680516,3.66900644,176.22,176.12,5.6778]
[1721962680999,3.66900644,176.22,176.13,20.0]
[1721962681305,3.66900644,176.22,176.13,25.6773]
[1721962681598,3.66900644,176.22,176.13,20.0]
[1721962681903,3.66900644,176.22,176.13,25.6775]
[1721962682103,3.66900644,176.22,176.14,5.6772]
[1721962682414,3.66900644,176.22,176.13,20.0]
[1721962682580,3.66900644,176.22,176.11,20.0]
[1721962682776,5.6755,176.2,176.11,20.0]
[1721962682980,5.675,176.21,176.11,20.0]
[1721962683180,5.6753,176.2,176.11,20.0]
[1721962683403,3.66900644,176.22,176.11,21.13548885]
[1721962683704,3.66900644,176.22,176.13,5.6775]
[1721962683906,3.66900644,176.22,176.14,25.6772]
[1721962684283,3.66900644,176.22,176.14,20.0]
[1721962685309,5.6752,176.21,176.11,20.0]
[1721962685502,3.66900644,176.22,176.11,46.23545521]
[1721962685706,3.66900644,176.22,176.18,5.6759]
[1721962685908,3.66900644,176.22,176.17,5.6762]
[1721962686100,3.66900644,176.22,176.18,20.0]
[1721962686696,3.66900644,176.22,176.17,20.0]
[1721962687789,3.66900644,176.22,176.15,5.6769]
[1721962687989,3.66900644,176.22,176.16,20.0]
[1721962688191,3.66900644,176.22,176.13,21.6196]
[1721962688795,3.66900644,176.22,176.16,5.6764]
[1721962688995,3.66900644,176.22,176.14,5.6771]
[1721962689409,3.66900644,176.22,176.13,21.6196]
[1721962689611,3.66900644,176.22,176.14,20.0]
[1721962689820,3.66900644,176.22,176.15,5.6769]
[1721962690113,3.66900644,176.22,176.14,25.6772]
[1721962690410,3.66900644,176.22,176.14,20.0]
[1721962690611,3.66900644,176.22,176.14,25.6771]
[1721962690811,3.66900644,176.22,176.14,20.0]
[1721962691013,3.66900644,176.22,176.15,5.6767]
[1721962691190,3.66900644,176.22,176.14,20.0]
[1721962691912,3.66900644,176.22,176.14,25.677]
[1721962692108,5.6756,176.2,176.09,28.4209]
[1721962692291,45.0,176.19,176.09,22.7421]
[1721962692618,5.6761,176.18,176.09,22.7421]
[1721962693007,45.0,176.19,176.09,22.7421]
[1721962693200,20.0,176.18,176.04,28.3006]
[1721962693400,5.6766,176.16,176.05,5.6801]
[1721962693602,20.0,176.18,176.09,5.6788]
[1721962693908,20.0,176.18,176.04,22.6202]
[1721962694221,5.6763,176.17,176.07,5.6795]
[1721962694392,25.676,176.18,176.07,5.6795]
[1721962694714,25.676,176.18,176.04,22.6202]
[1721962694715,20.0,176.18,176.08,5.679]
[1721962694902,20.0,176.18,176.04,22.6202]
[1721962695102,25.1,176.17,176.05,20.0]
[1721962695307,65.0,176.16,176.0,22.7323]
[1721962695496,14.1924,176.15,176.0,22.7323]
[1721962695697,65.0,176.14,176.0,22.7323]
[1721962695914,65.0,176.14,176.0,28.4139]
[1721962696099,20.0,176.14,176.01,25.1]
[1721962696307,5.6783,176.11,176.0,28.414]
[1721962696514,5.6786,176.1,176.0,22.7323]
[1721962696721,5.6786,176.1,176.01,20.0]
[1721962697423,45.0,176.13,176.01,25.6813]
[1721962697608,50.6778,176.13,176.01,25.6813]
[1721962697821,50.6778,176.13,176.02,5.6811]
[1721962697993,50.6778,176.13,176.03,20.0]
[1721962698497,20.0,176.16,176.03,25.6807]
[1721962698697,45.0,176.15,176.03,20.0]
[1721962699001,45.0,176.15,175.82,28.74323578]
[1721962699002,25.1,176.11,175.96,22.4117]
[1721962699205,5.6796,176.07,175.96,22.4117]
[1721962699409,25.1,176.08,175.96,22.4117]
[1721962699620,5.6799,176.06,175.96,22.4117]
[1721962699797,5.6808,176.03,175.96,22.4117]
[1721962700120,25.1,176.07,175.96,22.4117]
[1721962700317,20.0,176.06,175.96,22.4117]
[1721962700525,50.6804,176.05,175.96,22.4117]
[1721962700692,45.0,176.05,175.96,22.4117]
[1721962700892,50.6802,176.05,175.96,22.4117]
[1721962701233,45.0,176.05,175.96,22.4117]
[1721962701522,5.6805,176.04,175.96,22.4117]
[1721962701699,5.6809,176.03,175.96,22.4117]
[1721962701900,5.6805,176.04,175.96,22.4117]
[1721962702400,5.681,176.03,175.96,22.4117]
[1721962702618,5.6802,176.05,175.96,22.4117]
[1721962702808,5.6807,176.04,175.96,22.4117]
[1721962703396,25.1,176.01,175.92,21.2823]
[1721962703694,30.7817,176.01,175.92,21.2823]
[1721962703899,25.6818,176.0,175.92,21.2823]
[1721962704113,20.0,176.0,175.92,21.2823]
[1721962704308,20.0,176.0,175.88,21.2823]
[1721962704309,45.0,175.99,175.88,21.2823]
[1721962704521,45.1,175.98,175.88,21.2823]
[1721962704711,25.1,175.95,175.84,21.2823]
[1721962704915,20.0,175.94,175.84,21.2823]
[1721962705127,20.0,175.94,175.86,5.6862]
[1721962705329,5.6841,175.93,175.84,21.2823]
[1721962705629,45.0,175.97,175.84,21.2823]
[1721962705810,45.0,175.97,175.84,22.41951288]
[1721962706012,45.0,175.97,175.85,45.0]
[1721962706212,45.0,175.97,175.86,5.6862]
[1721962706415,50.6829,175.97,175.85,45.0]
[1721962706829,5.6831,175.96,175.86,20.0]
[1721962707030,50.6828,175.97,175.86,25.6862]
[1721962707420,5.6832,175.96,175.86,20.0]
[1721962707921,45.0,175.97,175.86,20.0]
[1721962708125,5.6834,175.96,175.86,20.0]
[1721962708916,70.1,175.95,175.84,21.2823]
[1721962709134,5.6844,175.92,175.84,21.2823]
[1721962709845,5.6847,175.91,175.84,21.2823]
[1721962710028,5.6844,175.92,175.84,21.2823]
[1721962710333,5.6841,175.93,175.84,21.2823]
[1721962710550,5.6837,175.94,175.84,21.2823]
[1721962710835,5.6837,175.94,175.84,26.9692]
[1721962711037,5.6837,175.94,175.84,21.2823]
[1721962711622,30.7834,175.95,175.84,26.9692]
[1721962711815,25.6837,175.94,175.84,26.9692]
[1721962712018,25.6837,175.94,175.84,21.2823]
[1721962712235,20.0,175.94,175.84,26.9692]
[1721962712434,5.6855,175.89,175.84,21.2823]
[1721962713138,5.6857,175.88,175.79,22.4229]
[1721962713436,5.6853,175.9,175.79,22.4229]
[1721962713620,5.6853,175.89,175.79,28.1114]
[1721962713814,5.6853,175.89,175.8,20.0]
[1721962714011,25.1,175.92,175.8,20.0]
[1721962714012,5.685,175.9,175.8,20.0]
[1721962714209,5.6847,175.91,175.81,5.6879]
[1721962714426,20.0,175.9,175.81,5.6879]
[1721962714747,20.0,175.9,175.8,25.6882]
[1721962714946,25.6853,175.9,175.8,20.0]
[1721962716152,20.0,175.9,175.8,20.0]
[1721962716364,25.1,175.94,175.81,45.0]
[1721962716555,5.6846,175.92,175.81,45.0]
[1721962716861,25.1,175.94,175.82,20.0]
[1721962717066,20.0,175.93,175.82,20.0]
[1721962717359,5.6853,175.89,175.82,20.0]
[1721962717556,5.6853,175.89,175.8,20.0]
[1721962717757,34.2108,175.93,175.8,20.0]
[1721962717948,5.6857,175.88,175.8,20.0]
[1721962718149,5.6856,175.89,175.8,20.0]
[1721962718347,5.6858,175.88,175.8,20.0]
[1721962719262,5.6854,175.89,175.8,20.0]
[1721962719552,25.1,175.91,175.79,22.4229]
[1721962719755,65.0,175.9,175.79,22.4229]
[1721962719966,25.1,175.88,175.79,22.4229]
[1721962720161,30.7859,175.88,175.79,22.4229]
[1721962720332,5.6861,175.87,175.79,22.4229]
[1721962720535,25.1,175.88,175.79,22.4229]
[1721962720855,5.6861,175.87,175.79,22.4229]
[1721962721036,30.7857,175.88,175.79,22.4229]
[1721962721365,20.0,175.9,175.79,22.4229]
[1721962721662,20.0,175.9,175.81,5.6877]
[1721962721834,20.0,175.91,175.79,22.4229]
[1721962722041,5.6845,175.92,175.81,5.6879]
[1721962722251,25.6848,175.91,175.81,5.6879]
[1721962722458,5.6848,175.91,175.81,5.6879]
[1721962722653,20.0,176.01,175.8,45.0]
[1721962722654,28.3957,176.09,175.84,25.1]
[1721962722863,5.6822,175.99,175.88,5.6855]
[1721962723039,25.1,176.01,175.89,5.6853]
[1721962723445,5.6824,175.98,175.87,5.6859]
[1721962723646,5.6827,175.98,175.87,5.6859]
[1721962723865,5.6822,175.99,175.88,5.6856]
[1721962724045,20.0,175.98,175.88,5.6856]
[1721962724240,25.6826,175.98,175.87,5.6859]
[1721962724470,5.6828,175.97,175.86,22.85731288]
[1721962724657,5.6831,175.96,175.87,65.0]
[1721962725052,25.6827,175.98,175.87,20.0]
[1721962725340,25.6827,175.98,175.87,25.6859]
[1721962725541,20.0,175.98,175.87,20.0]
[1721962725778,34.2051,176.0,175.87,20.0]
[1721962726059,5.6831,175.96,175.87,20.0]
[1721962726256,5.6828,175.97,175.87,20.0]
[1721962726438,5.6831,175.96,175.87,20.0]
[1721962726647,45.0,175.99,175.87,20.0]
[1721962726849,20.0,175.98,175.87,20.0]
[1721962727063,5.6834,175.95,175.87,20.0]
[1721962727265,5.6831,175.97,175.87,20.0]
[1721962727663,5.6843,175.93,175.86,21.7205]
[1721962727968,25.6827,175.98,175.87,5.6858]
[1721962728168,5.6829,175.97,175.86,27.4065]
[1721962728344,20.0,175.96,175.86,27.4065]
[1721962729376,20.0,176.0,175.86,27.4065]
[1721962729550,45.0,175.99,175.86,27.4065]
[1721962729755,20.0,175.98,175.86,21.7205]
[1721962729960,5.6835,175.95,175.86,21.7205]
[1721962730952,5.6842,175.93,175.86,21.7205]
[1721962731154,5.6844,175.92,175.86,21.7205]
[1721962731761,5.6848,175.91,175.86,21.7205]
[1721962732355,20.0,175.9,175.86,21.7205]
[1721962732665,5.6857,175.88,175.77,5.6891]
[1721962732969,5.6834,175.95,175.84,5.6867]
[1721962733276,20.0,175.94,175.86,5.6862]
[1721962733455,20.0,175.95,175.87,22.621]
[1721962733654,25.6834,175.95,175.87,22.621]
[1721962734160,20.0,175.95,175.87,22.621]
[1721962734546,25.6835,175.95,175.87,22.621]
[1721962735052,20.0,175.95,175.87,22.621]
[1721962735455,5.6828,175.97,175.87,22.621]
[1721962735657,411.51197357,176.0,175.89,5.6853]
[1721962735658,411.282,176.0,175.89,5.6853]
[1721962735863,5.6814,176.02,175.9,46.13682512]
[1721962736050,5.6814,176.02,175.93,16.411]
[1721962736250,5.6815,176.01,175.93,16.411]
[1721962736473,5.6812,176.02,175.93,16.411]
[1721962736678,5.6812,176.02,175.93,17.54768773]
[1721962736976,5.6815,176.01,175.93,16.411]
[1721962737178,5.6819,176.0,175.93,16.411]
[1721962738564,25.1,176.04,175.93,16.411]
[1721962738769,5.6815,176.01,175.93,16.411]
[1721962740081,25.1,175.96,175.93,16.411]
[1721962741158,5.6828,175.97,175.93,16.411]
[1721962741356,20.0,175.96,175.93,16.411]
[1721962741864,5.683,175.97,175.93,16.411]
[1721962742075,5.6832,175.96,175.93,16.411]
[1721962742380,5.6834,175.95,175.93,16.411]
[1721962743483,5.6831,175.96,175.92,6.21]
[1721962743676,5.6828,175.97,175.92,6.21]
[1721962744604,5.6822,175.99,175.92,6.21]
[1721962744771,30.7812,176.02,175.92,11.8941]
[1721962744959,30.7812,176.02,175.92,11.8943]
[1721962745284,5.6808,176.03,175.93,16.50316553]
[1721962745597,5.6808,176.03,175.7,28.99106698]
[1721962745598,256.6,176.16,175.97,6.3927]
[1721962745771,5.6779,176.12,176.02,15.1953]
[1721962745971,5.6783,176.11,176.02,15.1953]
[1721962746366,5.678,176.12,176.02,15.1953]
[1721962746566,5.6783,176.11,176.03,6.3927]
[1721962746892,5.6786,176.1,176.03,6.3927]
[1721962747466,5.6783,176.11,176.03,6.3927]
[1721962748172,5.6776,176.13,176.03,12.0734]
[1721962748372,5.6773,176.14,176.04,1.13596461]
[1721962748572,5.6773,176.14,176.04,26.81636461]
[1721962748872,5.6769,176.15,176.04,26.81636461]
[1721962749896,5.6769,176.15,176.04,25.6804]
[1721962750089,45.0,176.14,176.04,25.6804]
[1721962750289,45.0,176.14,176.04,20.0]
[1721962750486,28.26,176.1,176.03,6.3927]
[1721962750688,45.0,176.09,176.03,6.3927]
[1721962750990,79.1975,176.09,176.02,15.1953]
[1721962751177,5.6808,176.03,176.02,15.1953]
[1721962751380,70.6808,176.03,176.02,15.1953]
[1721962751576,5.6813,176.02,175.99,6.2661]
[1721962751772,65.0,176.03,175.99,6.2661]
[1721962752177,70.6808,176.03,175.99,6.2661]
[1721962752388,20.0,176.03,175.99,6.2661]
[1721962752587,5.6802,176.05,175.99,6.2661]
[1721962752894,20.0,176.04,175.99,6.2661]
[1721962753296,25.6796,176.07,175.99,6.2661]
[1721962753803,11.59408774,176.13,176.01,5.6814]
[1721962754103,5.6776,176.13,176.03,16.1343]
[1721962754467,5.678,176.12,176.03,17.27026464]
[1721962754685,28.26,176.16,176.04,1.1359654]
[1721962754900,5.9142379,176.18,176.05,6.2661]
[1721962755106,5.6772,176.15,176.05,6.2661]
[1721962755285,5.6773,176.14,176.05,6.2661]
[1721962756091,5.6776,176.13,176.05,6.2661]
[1721962756705,5.6773,176.14,176.05,6.2661]
[1721962757217,5.9142379,176.18,176.05,6.2661]
[1721962757218,5.6776,176.13,176.05,6.2661]
[1721962757371,5.6773,176.14,176.05,6.2661]
[1721962759299,50.6776,176.13,176.05,6.2661]
[1721962759704,5.678,176.12,176.05,6.2661]
[1721962759906,45.0,176.11,176.05,6.2661]
[1721962760983,5.6805,176.05,176.03,16.1343]
[1721962761178,5.68,176.06,176.03,16.1343]
[1721962761392,50.6803,176.05,176.03,16.1343]
[1721962761992,50.6803,176.05,176.01,6.2661]
[1721962761993,5.6805,176.04,176.01,6.2661]
[1721962762193,45.0,176.03,176.01,6.2661]
[1721962763206,50.6808,176.03,176.01,6.2661]
[1721962763708,45.0,176.03,176.01,6.2661]
[1721962763905,28.26,176.09,176.01,6.2661]
[1721962764085,20.0,176.08,176.01,6.2661]
[1721962764285,5.6806,176.04,176.01,6.2661]
[1721962764598,70.6809,176.03,176.01,6.2661]
[1721962764799,45.0,176.02,176.01,6.2661]
[1721962765190,20.0,176.03,176.01,6.2661]
[1721962765389,45.0,176.02,176.01,6.2661]
[1721962765612,50.6811,176.02,176.01,6.2661]
[1721962765799,50.6811,176.02,175.98,16.1343]
[1721962766101,50.6815,176.01,175.98,16.1343]
[1721962766417,20.0,176.0,175.93,22.0197]
[1721962766609,45.0,175.99,175.93,22.0197]
[1721962766911,20.0,176.0,175.93,22.0197]
[1721962767295,25.6821,176.0,175.93,22.0197]
[1721962767489,20.0,176.0,175.93,22.0197]
[1721962767689,50.6821,175.99,175.93,22.0197]
[1721962767883,5.6825,175.98,175.93,22.0197]
[1721962768105,45.0,175.99,175.93,22.0197]
[1721962768311,50.6824,175.99,175.93,22.0197]
[1721962768696,5.6826,175.98,175.93,22.0197]
[1721962769099,50.6821,175.99,175.93,22.0197]
[1721962769486,5.6825,175.98,175.93,22.0197]
[1721962769812,65.0,175.97,175.93,22.0197]
[1721962770019,20.0,175.97,175.93,22.0197]
[1721962770198,5.6837,175.94,175.89,21.6962]
[1721962770386,45.0,175.93,175.89,21.6962]
[1721962771518,50.684,175.93,175.89,21.6962]
[1721962771682,45.0,175.93,175.85,6.2437]
[1721962772319,5.6845,175.92,175.85,6.2437]
[1721962772621,65.0,175.91,175.85,6.2437]
[1721962772795,50.6851,175.9,175.85,6.2437]
[1721962772989,45.0,175.9,175.85,6.2437]
[1721962773411,25.6849,175.91,175.85,6.2437]
[1721962773615,45.0,175.9,175.85,6.2437]
[1721962775023,20.0,175.91,175.85,6.2437]
[1721962775321,45.0,175.9,175.85,6.2437]
[1721962776719,50.6851,175.9,175.85,6.2437]
[1721962776914,20.0,175.89,175.85,6.2437]
[1721962777307,45.0,175.9,175.85,6.2437]
[1721962777503,5.684,175.94,175.85,6.2437]
[1721962777713,25.6841,175.93,175.85,6.2437]
[1721962777916,45.0,175.92,175.85,6.2437]
[1721962778235,20.0,175.93,175.85,6.2437]
[1721962778527,28.26,175.93,175.85,6.2437]
[1721962778696,5.6857,175.88,175.85,6.2437]
[1721962778900,5.6853,175.9,175.85,6.2437]
[1721962779131,20.0,175.89,175.85,6.2437]
[1721962779316,20.0,175.9,175.85,6.2437]
[1721962779508,45.0,175.91,175.85,6.2437]
[1721962779822,20.0,175.9,175.85,6.2437]
[1721962780008,5.6854,175.89,175.85,6.2437]
[1721962780521,50.6857,175.88,175.85,6.2437]
[1721962781421,20.0,175.9,175.85,6.2437]
[1721962781612,45.0,175.89,175.85,6.2437]
[1721962782431,50.6856,175.89,175.85,6.2437]
[1721962782607,45.0,175.89,175.84,15.4525]
[1721962782801,14.2121,175.91,175.84,15.4525]
[1721962782802,5.6865,175.86,175.84,15.4525]
[1721962783026,5.686,175.87,175.84,15.4525]
[1721962783229,25.6857,175.88,175.84,15.4525]
[1721962783437,5.6877,175.82,175.8,6.6047]
[1721962783611,34.2143,175.88,175.8,6.6047]
[1721962783814,45.0,175.87,175.8,6.6047]
[1721962784126,5.6876,175.82,175.8,6.6047]
[1721962784329,45.0,175.81,175.8,6.6047]
[1721962784720,50.6879,175.81,175.8,6.6047]
[1721962785231,45.0,175.81,175.74,23.237]
[1721962785407,20.0,175.8,175.74,23.237]
[1721962785608,45.0,175.79,175.74,23.237]
[1721962787326,50.6886,175.79,175.74,23.237]
[1721962788230,5.689,175.78,175.74,23.237]
[1721962788811,45.0,175.79,175.74,23.237]
[1721962789932,14.2152,175.87,175.74,23.237]
[1721962789933,270.8129,175.9,175.76,5.6892]
[1721962790110,5.6859,175.88,175.74,24.37471761]
[1721962790314,5.6859,175.88,175.77,5.689]
[1721962790508,14.2121,175.91,175.75,20.0]
[1721962790710,30.19625119,175.91,175.74,23.237]
[1721962790924,5.6873,175.83,175.74,23.237]
[1721962791149,14.2141,175.89,175.74,28.9271]
[1721962791316,14.2141,175.89,175.75,5.6897]
[1721962791519,20.0,175.88,175.77,5.689]
[1721962791731,5.6862,175.87,175.77,5.6891]
[1721962791934,65.0,175.86,175.77,5.6891]
[1721962792213,65.0,175.86,175.74,24.37471546]
[1721962792214,65.0,175.86,175.74,23.237]
[1721962792728,5.6879,175.82,175.74,23.237]
[1721962793020,5.6873,175.84,175.74,23.237]
[1721962793224,65.0,175.83,175.74,23.237]
[1721962793448,45.0,175.86,175.74,23.237]
[1721962793736,45.0,175.86,175.77,5.6889]
[1721962793922,45.0,175.87,175.77,5.6889]
[1721962794129,50.6861,175.87,175.77,5.6889]
[1721962794950,20.0,175.86,175.75,5.6895]
[1721962795121,50.6867,175.85,175.75,5.6895]
[1721962795525,5.6871,175.84,175.74,23.237]
[1721962795737,45.0,175.85,175.76,5.6894]
[1721962795941,50.6867,175.85,175.74,23.237]
[1721962796152,50.6867,175.85,175.75,5.6897]
[1721962796441,45.0,175.85,175.75,5.6897]
[1721962796613,45.0,175.85,175.78,5.6887]
[1721962796816,256.6,175.97,175.79,23.15356037]
[1721962797045,256.6,175.97,175.79,22.0159]
[1721962797244,5.91392028,175.95,175.8,1.13753791]
[1721962797418,5.6845,175.92,175.8,1.13753791]
[1721962797942,5.6848,175.91,175.81,5.6878]
[1721962798516,5.91392028,175.95,175.82,22.4318]
[1721962798722,5.6837,175.95,175.83,1.13723369]
[1721962799024,5.91380138,175.96,175.82,22.4318]
[1721962799328,14.2093,175.95,175.82,22.4318]
[1721962799644,5.6851,175.9,175.82,22.4318]
[1721962800249,45.0,175.89,175.82,22.4318]
[1721962800421,20.0,175.88,175.82,22.4318]
[1721962800624,5.6841,175.93,175.82,22.4318]
[1721962800848,5.91380138,175.96,175.86,5.6862]
[1721962801152,5.91380138,175.96,175.85,5.6866]
[1721962801317,5.91380138,175.96,175.87,6.3896]
[1721962801525,11.59690138,175.96,175.88,15.7643]
[1721962801823,380.5,175.99,175.88,16.90140038]
[1721962802130,380.5,175.99,175.88,15.7643]
[1721962802340,5.6838,175.94,175.88,15.7643]
[1721962802528,5.684,175.93,175.88,15.7643]
[1721962802849,5.6837,175.95,175.88,15.7643]
[1721962803027,25.6839,175.94,175.88,15.7643]
[1721962803226,5.6849,175.91,175.88,15.7643]
[1721962803435,5.6844,175.92,175.88,15.7643]
[1721962803624,45.0,175.91,175.88,15.7643]
[1721962803838,45.0,175.92,175.88,15.7643]
[1721962804227,45.0,175.93,175.88,15.7643]
[1721962804425,5.6851,175.9,175.88,15.7643]
[1721962804627,45.0,175.89,175.87,6.3896]
[1721962804952,45.0,175.93,175.87,6.3896]
[1721962804953,5.6847,175.92,175.87,6.3896]
[1721962805126,45.0,175.91,175.87,6.3896]
[1721962805636,20.0,175.94,175.87,6.3896]
[1721962805943,5.683,175.97,175.87,6.3896]
[1721962806148,5.6832,175.96,175.87,6.3896]
[1721962806353,5.6836,175.95,175.87,6.3896]
[1721962806652,5.6838,175.94,175.87,6.3896]
[1721962807634,5.6845,175.92,175.87,6.3896]
[1721962807857,45.0,175.91,175.87,6.3896]
[1721962808350,45.0,175.92,175.87,6.3896]
[1721962808928,5.6834,175.95,175.87,6.3896]
[1721962809135,20.0,175.94,175.87,6.3896]
[1721962810263,5.6831,175.96,175.87,6.3896]
[1721962810860,5.6835,175.95,175.87,6.3896]
[1721962811033,5.6839,175.94,175.87,6.3896]
[1721962811749,5.6834,175.95,175.87,6.3896]
[1721962811937,45.0,175.94,175.87,6.3896]
[1721962813051,50.6838,175.94,175.87,6.3896]
[1721962813268,45.0,175.94,175.87,6.3896]
[1721962813640,5.6844,175.92,175.87,6.3896]
[1721962813840,5.6841,175.93,175.87,6.3896]
[1721962814148,45.0,175.94,175.87,6.3896]
[1721962816064,5.6842,175.93,175.87,6.3896]
[1721962816265,45.0,175.92,175.87,6.3896]
[1721962816464,50.6844,175.92,175.87,6.3896]
[1721962816639,5.6847,175.91,175.87,6.3896]
[1721962816945,45.0,175.9,175.87,6.3896]
[1721962817442,45.0,175.91,175.87,6.3896]
[1721962817839,5.685,175.9,175.87,6.3896]
[1721962818039,45.0,175.91,175.87,6.3896]
[1721962818261,5.6855,175.89,175.87,6.3896]
[1721962818475,45.0,175.88,175.87,6.3896]
[1721962819534,20.0,175.9,175.87,6.3896]
[1721962819746,45.0,175.89,175.87,6.3896]
[1721962820045,5.6856,175.89,175.84,15.3328]
[1721962820245,65.0,175.88,175.84,15.3328]
[1721962820542,65.0,175.88,175.83,6.4711]
[1721962820947,5.6867,175.85,175.8,16.3041]
[1721962821162,45.0,175.84,175.8,16.3041]
[1721962821461,5.686,175.87,175.8,16.3041]
[1721962821673,20.0,175.88,175.8,16.3041]
[1721962822372,20.0,175.88,175.81,5.6878]
[1721962822543,20.0,175.9,175.81,5.6878]
[1721962822743,276.6,176.05,175.85,5.6863]
[1721962823054,25.18,175.99,175.85,5.6863]
[1721962823258,25.18,175.99,175.84,5.6869]
[1721962823575,14.2069,175.98,175.83,21.7294]
[1721962823734,14.2069,175.98,175.83,27.4164]
[1721962823940,25.18,175.96,175.83,21.7294]
[1721962824154,25.18,175.93,175.83,21.7294]
[1721962824343,45.0,175.92,175.83,21.7294]
[1721962824549,5.6854,175.89,175.83,21.7294]
[1721962824850,5.6851,175.9,175.83,21.7294]
[1721962825042,65.0,175.89,175.83,21.7294]
[1721962825246,25.18,175.96,175.83,21.7294]
[1721962825443,14.2073,175.97,175.84,5.6869]
[1721962825444,5.6837,175.94,175.84,5.6869]
[1721962825979,5.6851,175.9,175.83,21.7294]
[1721962826465,25.18,175.96,175.83,21.7294]
[1721962826658,5.6835,175.95,175.85,5.6865]
[1721962826865,20.0,175.94,175.85,5.6865]
[1721962828183,14.2039,176.01,175.85,23.81686624]
[1721962828379,14.2039,176.01,175.85,22.6797]
[1721962829160,5.6833,175.96,175.86,5.6862]
[1721962829360,5.6834,175.95,175.85,28.3663]
[1721962829987,5.6834,175.95,175.85,29.50343448]
[1721962830159,45.0,175.94,175.85,29.50343448]
[1721962830353,45.0,175.94,175.85,28.3663]
[1721962830564,50.6837,175.94,175.85,22.6797]
[1721962831377,5.6841,175.93,175.85,22.6797]
[1721962831680,50.6837,175.94,175.85,22.6797]
[1721962832185,50.6838,175.94,175.85,22.6797]
[1721962832383,45.0,175.94,175.85,23.81695438]